[Event "Saint Louis Super Swiss 2023"]
[Site "Saint Louis"]
[Date "2023.03.17"]
[Round "9.10"]
[White "Ladan, Nicholas"]
[Black "Stearman, Josiah"]
[Result "1/2-1/2"]
[ECO "A45"]
[WhiteElo "2273"]
[BlackElo "2391"]
[Annotator "TA"]
[PlyCount "140"]
[EventDate "2023.03.12"]
[EventType "swiss"]
[EventCountry "USA"]
[TimeControl "5400+30"]

{[%evp 9,140,0,0,0,0,-4,20,10,0,16,6,6,24,29,32,34,32,12,31,21,31,0,0,0,0,0,0,0,0,0,0,-18,-13,0,0,-15,0,0,0,-49,-47,-72,-70,-64,0,0,35,22,49,35,39,36,37,29,58,37,45,36,35,42,22,44,58,50,50,0,0,0,0,0,0,-501,-484,-452,10,14,213,189,188,187,464,248,323,279,246,161,163,150,159,168,154,116,115,111,113,113,113,57,57,55,55,59,83,89,107,108,108,59,110,112,93,60,82,38,64,40,49,50,50,8,8,8,8,8,8,8,8,8,8,8,8,8,8]} 1. d4 {[%emt 0:00:04]} Nf6 {[%emt 0:09:21]} 2. Bf4 {[%emt 0:00:15]} g6 {[%emt 0:00:46]} 3. Nc3 {[%emt 0:00:23]} d5 {[%emt 0:00:26]} 4. e3 {[%emt 0:01:20]} Bg7 {[%emt 0:00:18]} 5. h4 {[%emt 0:00:44]} h5 {[%emt 0:00:28]} 6. Nb5 {[%emt 0:01:34] A45: Trompowsky Attack.} Na6 {[%emt 0:00:13]} 7. Nf3 {[%emt 0:00:41]} Ne4 {[%emt 0:01:37]} 8. Ne5 {[%emt 0:07:13]} c6 {[%emt 0:00:55]} 9. f3 {[%emt 0:02:47] [#]} Qa5+ $146 {[%emt 0:01:40]} (9... Nd6 {simplifies} 10. Nc3 Nc7 11. Bd3 Ne6) ({Predecessor:} 9... Nd6 10. Nc3 Nc7 11. Bd3 Ne6 12. Bh2 Bf6 13. Bg3 Nf5 14. Bxf5 gxf5 15. Qd2 Rg8 {1-0 Olcum,A (2223)-Maksimovic,B (2210) Balikesir Sebboy Gp 2022 (2.4)}) 10. c3 {[%emt 0:01:13]} Nd6 {[%emt 0:01:16]} (10... Nf6 $5 {[%cal Rc6b5]} 11. a4 O-O $11) 11. Nxd6+ {[%emt 0:07:49]} exd6 {[%emt 0:00:04]} 12. Nd3 {[%emt 0:00:10]} Qd8 {[%emt 0:00:44]} 13. Qb3 {[%emt 0:03:52]} Bf6 {[%emt 0:01:56]} 14. O-O-O {[%emt 0:02:39]} Bxh4 {[%emt 0:01:14] [#]} 15. Rxh4 $1 {[%emt 0:04:23]} Qxh4 {[%emt 0:00:12]} 16. Bxd6 {[%emt 0:00:08][%cal Oe3e4]} Qd8 {[%emt 0:00:16]} 17. Ba3 {[%emt 0:04:07]} Qb6 $1 {[%emt 0:00:48]} 18. Qc2 {[%emt 0:03:46]} Bf5 {[%emt 0:00:06]} 19. e4 $1 {[%emt 0:12:48]} dxe4 {[%emt 0:00:07]} 20. Re1 {[%emt 0:01:00]} O-O-O $1 {[%emt 0:00:20]} 21. fxe4 {[%emt 0:00:06]} Be6 {[%emt 0:00:14][%cal Bf5e6,Be6a2,Ba2b3][%mdl 32]} 22. Be7 {[%emt 0:01:40]} Bxa2 {[%emt 0:02:03]} 23. Bxd8 {[%emt 0:01:42]} Rxd8 {[%emt 0:00:12]} 24. Ne5 {[%emt 0:01:51]} (24. Qa4 $11 {is more appropriate.} Be6 25. Ne5) 24... Bb3 $1 $15 {[%emt 0:01:07]} 25. Qf2 {[%emt 0:04:21]} Qa5 {[%emt 0:05:24] And now ...Qa1+ would win.} 26. Bd3 $1 {[%emt 0:00:23]} (26. Bxa6 $2 Qa1+ 27. Kd2 Qxb2+ 28. Ke3 Qxc3+ 29. Kf4 bxa6 $19) 26... Qa1+ {[%emt 0:01:21]} (26... c5 $1 $15 27. d5 Qa1+ 28. Bb1 Ba2) 27. Bb1 $11 {[%emt 0:00:08]} Ba2 {[%emt 0:00:17]} 28. Kc2 {[%emt 0:01:40] Strongly threatening Bxa2. Active counter play!} Bxb1+ {[%emt 0:01:33]} (28... Nc5 {is interesting.} 29. Bxa2 Qxa2 30. Qxf7 Qa4+) 29. Rxb1 {[%emt 0:00:07]} Qa4+ {[%emt 0:00:29]} 30. b3 {[%emt 0:01:23]} Qa2+ {[%emt 0:00:16]} 31. Rb2 {[%emt 0:00:06]} Qa1 {[%emt 0:00:42][%cal Oa6c5]} 32. Nxf7 {[%emt 0:02:54]} (32. Qxf7 Qe1 $11) 32... Rd7 {[%emt 0:00:29][%cal Oa6c5]} 33. Ne5 {[%emt 0:02:10][%csl LRd7,LRg6]} (33. e5 {looks sharper.} Nc5 34. Qf3 Nd3 35. Nd6+) 33... Rd8 {[%emt 0:00:04]} 34. Nxg6 {[%emt 0:01:39]} Nc7 {[%emt 0:00:03]} 35. Ne5 {[%emt 0:03:27]} Nb5 {[%emt 0:01:12]} 36. Nc4 $1 {[%emt 0:01:05]} Rg8 {[%emt 0:00:05]} 37. Ne3 {[%emt 0:06:17]} (37. e5 $14) 37... h4 {[%emt 0:03:00]} 38. e5 {[%emt 0:03:43]} (38. Qxh4 $2 Na3+ 39. Kd3 Qxb2 $19) 38... Rg3 {[%emt 0:00:59][%cal Og3e3] ...Rxe3! is the strong threat.} 39. Kd3 {[%emt 0:02:29]} ({Not} 39. Qf8+ $2 Kc7 40. Qf7+ (40. Qe7+ $2 Kb6 $19) 40... Kb6 $19) 39... Qd1+ {[%emt 0:00:14]} 40. Qd2 $2 {[%emt 0:02:15][%mdl 8192]} (40. Kc4 $11 {and White has nothing to worry.} Qc1 41. Qf8+ Kc7 42. Qe7+ Kc8 43. Qf8+ Kc7 44. Qe7+ Kc8 45. Qf8+) 40... Qf1+ $1 $19 {[%emt 0:00:10]} 41. Qe2 {[%emt 0:00:21]} Qf4 {[%emt 0:00:23]} (41... Qf5+ $1 $19 42. Kd2 Qf4) 42. Qf2 $36 {[%emt 0:00:48][%mdl 2048] White has the initiative. The board is on fire.} Qg5 {[%emt 0:02:10]} (42... Qxf2 $1 $11 {and Black stays safe.} 43. Rxf2 Nxc3 {[%mdl 64] Decoy} 44. Kxc3 Rxe3+ 45. Kc4 a5) 43. Re2 $1 $18 {[%emt 0:00:08]} Qg6+ {[%emt 0:03:06] [#]} 44. Kd2 $1 {[%emt 0:00:06] Black must now prevent Qf8+.} Kc7 $2 {[%emt 0:00:04]} (44... Qe6) 45. Qf5 {[%emt 0:01:05]} (45. d5 $142) 45... Qh6 {[%emt 0:02:47][%cal Ob5c3]} 46. e6 {[%emt 0:00:56] aiming for e7.} Nd6 {[%emt 0:00:21]} 47. Qe5 {[%emt 0:00:24] Hoping for Rf2.} Rg5 {[%emt 0:00:10]} 48. Qf4 {[%emt 0:00:54]} Rg6 {[%emt 0:04:25]} 49. Qxh6 {[%emt 0:01:24]} Rxh6 $16 {[%emt 0:00:01][%mdl 4096] Endgame KRN-KRN} 50. e7 {[%emt 0:02:50][%cal Oe3f5]} Ne8 {[%emt 0:01:29]} 51. Nf5 {[%emt 0:00:34]} Rh5 {[%emt 0:00:12]} 52. Re5 {[%emt 0:01:19]} Kd7 {[%emt 0:00:22]} 53. Kd3 {[%emt 0:01:36]} ({White should play} 53. b4 $16) 53... h3 $14 {[%emt 0:00:27]} 54. gxh3 {[%emt 0:00:06]} Rxh3+ {[%emt 0:00:02]} 55. Kc4 {[%emt 0:00:29]} Rf3 {[%emt 0:00:27][%cal Of3f5] ...Rxf5! would be deadly.} 56. Kb4 {[%emt 0:01:00]} b6 {[%emt 0:03:55] [#]} 57. c4 $1 {[%emt 0:01:36]} a5+ {[%emt 0:01:25]} 58. Ka4 {[%emt 0:00:34]} (58. Ka3 $16) 58... Rf1 {[%emt 0:03:47]} (58... Rf2 $1 $14 59. b4 axb4) 59. Ka3 $16 {[%emt 0:00:05]} Rd1 {[%emt 0:01:16]} 60. d5 {[%emt 0:02:24]} cxd5 {[%emt 0:01:23]} 61. cxd5 {[%emt 0:00:36]} Rd2 {[%emt 0:01:59]} 62. Ka4 {[%emt 0:01:12]} Nc7 {[%emt 0:00:26][%cal Rd2a2]} 63. b4 {[%emt 0:01:07]} axb4 {[%emt 0:02:08]} 64. d6 {[%emt 0:00:09]} (64. Ng7 {simplifies} Kd6 65. e8=R Nxe8 66. Rxe8 Rxd5 67. Rh8) 64... Ne8 {[%emt 0:00:30] The position is equal.} 65. Kxb4 {[%emt 0:00:10]} Rb2+ {[%emt 0:00:26]} 66. Kc4 {[%emt 0:00:49]} Rc2+ {[%emt 0:00:09]} 67. Kb5 {[%emt 0:01:55]} Rc5+ {[%emt 0:00:05]} 68. Rxc5 {[%emt 0:00:05]} (68. Kxb6 $2 {loses.} Rxe5 69. Nd4 Nxd6 70. e8=Q+ Nxe8 71. Nb3 Rh5 72. Nc5+ Kd6 73. Ne4+ Kd5 74. Nf2 Kd4 75. Kb7 Rh2 76. Ng4 Rg2 77. Nh6 Rg7+ 78. Kc6 Rg6+ 79. Kd7 Rxh6 80. Kxe8 Rh7 81. Kf8 Ke5 82. Ke8 Ke6 83. Kd8 Re7 84. Kc8 Kd6 85. Kd8 Re5 86. Kc8 Rb5 87. Kd8 Rb8#) 68... bxc5 {[%emt 0:00:03]} 69. Kxc5 {[%emt 0:00:07]} Nxd6 {[%emt 0:00:04][%mdl 64] Remove Defender, Deflection} 70. Nxd6 {[%emt 0:00:05]} Kxe7 {[%emt 0:00:03] Blacks defense is rewarded with a draw.   Weighted Error Value: White=0.26 (precise) /Black=0.24 (precise)} 1/2-1/2